bitfinex-derivatives/quotes_BTCF0:USTF0_20251129
["timestamp","ask_amount","ask_price","bid_price","bid_amount"]
[1764381878460,0.00110594,90866.0,90865.0,0.06950572]
[1764381879575,0.01211004,90866.0,90865.0,0.06950572]
[1764381882279,0.01211004,90866.0,90865.0,0.05850152]
[1764381886774,0.03349004,90866.0,90865.0,0.05850152]
[1764381887176,0.01211004,90866.0,90865.0,0.05850152]
[1764381894279,0.04253802,90866.0,90865.0,0.05850152]
[1764381894884,0.06391802,90866.0,90865.0,0.05850152]
[1764381895384,0.08493802,90866.0,90865.0,0.05850152]
[1764381899789,0.06391802,90866.0,90865.0,0.05850152]
[1764381900090,0.08500802,90866.0,90865.0,0.05850152]
[1764381901484,0.02091917,90866.0,90865.0,0.48850152]
[1764381901684,0.0986168,90891.0,90865.0,0.48850152]
[1764381901685,0.0110007,90894.0,90892.0,0.0244708]
[1764381901891,0.0532307,90894.0,90893.0,0.04354]
[1764381902180,0.0532295,90904.0,90902.0,0.0109997]
[1764381902386,0.05323,90900.0,90899.0,0.04354]
[1764381902586,0.06629,90900.0,90899.0,0.04354]
[1764381903794,0.06729,90900.0,90899.0,0.04354]
[1764381904183,0.07229,90900.0,90899.0,0.04454]
[1764381907191,0.07229,90900.0,90899.0,0.001]
[1764381907594,0.42229,90900.0,90899.0,0.001]
[1764381911000,0.59565,90900.0,90899.0,0.001]
[1764381913603,0.61996932,90900.0,90899.0,0.001]
[1764381915702,0.59565,90900.0,90899.0,0.001]
[1764381925115,0.99565,90900.0,90899.0,0.001]
[1764381927117,0.067681,90891.0,90890.0,0.00016508]
[1764381927318,0.641001,90891.0,90890.0,0.00016508]
[1764381928217,0.644001,90891.0,90890.0,0.00116508]
[1764381928928,0.334001,90891.0,90890.0,0.00116508]
[1764381930119,0.331001,90891.0,90890.0,0.00016508]
[1764381930318,0.633001,90891.0,90890.0,0.00116508]
[1764381931324,0.343001,90891.0,90890.0,0.00116508]
[1764381936835,0.623001,90891.0,90890.0,0.00116508]
[1764381937135,0.373001,90891.0,90890.0,0.00116508]
[1764381939338,0.623001,90891.0,90890.0,0.00116508]
[1764381943643,0.403001,90891.0,90890.0,0.00116508]
[1764381944943,0.663001,90891.0,90890.0,0.00116508]
[1764381945737,0.68722064,90891.0,90890.0,0.00116508]
[1764381948441,1.08722064,90891.0,90890.0,0.00116508]
[1764381949039,0.0562336,90870.0,90869.0,0.4058]
[1764381949231,0.0691036,90870.0,90869.0,0.4468037]
[1764381950036,0.0691036,90870.0,90869.0,0.3940737]
[1764381950439,0.0701036,90870.0,90869.0,0.4228037]
[1764381951846,0.0701036,90870.0,90869.0,0.4208037]
[1764381953146,0.0701036,90870.0,90869.0,0.43115055]
[1764381953943,0.0339836,90870.0,90869.0,0.43115055]
[1764381954948,0.0572336,90870.0,90869.0,0.43115055]
[1764381963554,0.0706636,90870.0,90869.0,0.43115055]
[1764381964554,0.0572336,90870.0,90869.0,0.43115055]
[1764381971965,0.0572336,90870.0,90869.0,0.07035055]
[1764381972160,0.0572336,90870.0,90869.0,0.14931792]
[1764381975365,0.001,90870.0,90869.0,0.47035055]
[1764381984884,0.0110028,90877.0,90876.0,0.05106]
[1764381985782,0.0110028,90877.0,90876.0,0.0620626]
[1764381985985,0.03528142,90877.0,90876.0,0.0620626]
[1764381986892,0.03628142,90877.0,90876.0,0.0640626]
[1764381987786,0.02527862,90877.0,90876.0,0.4340626]
[1764381988083,0.0110009,90892.0,90876.0,0.4340626]
[1764381988084,0.02106,90900.0,90899.0,0.04379]
[1764381988281,0.04212,90900.0,90899.0,0.40459]
[1764381988586,0.0531191,90907.0,90906.0,0.0547892]
[1764381988788,0.0531191,90907.0,90906.0,0.04379]
[1764381989084,0.4231191,90907.0,90906.0,0.04379]
[1764381990275,0.4251191,90907.0,90906.0,0.04379]
[1764381990883,0.4321191,90907.0,90906.0,0.04479]
[1764381991288,0.4251191,90907.0,90906.0,0.04379]
[1764381991485,0.4291191,90907.0,90906.0,0.04479]
[1764381996891,0.4291191,90907.0,90906.0,0.05546068]
[1764381999394,0.4291191,90907.0,90906.0,0.04479]
[1764382001089,0.8191191,90907.0,90906.0,0.04479]
[1764382001586,0.8191191,90907.0,90906.0,0.001]
[1764382005199,0.0531202,90898.0,90897.0,0.00016508]
[1764382005496,1.3471602,90898.0,90897.0,0.00016508]
[1764382006288,1.3481602,90898.0,90897.0,0.00016508]
[1764382006488,1.3481602,90898.0,90897.0,0.00116508]
[1764382006689,1.3501602,90898.0,90897.0,0.00116508]
[1764382014299,1.37457854,90898.0,90897.0,0.00116508]
[1764382014500,0.68457854,90898.0,90897.0,0.02340508]
[1764382014705,0.71457854,90898.0,90897.0,0.02340508]
[1764382014909,0.71457854,90898.0,90897.0,0.04495508]
[1764382015108,0.71457854,90898.0,90897.0,0.00116508]
[1764382015309,1.27457854,90898.0,90897.0,0.00116508]
[1764382015906,1.2501602,90898.0,90897.0,0.02340508]
[1764382016497,1.2501602,90898.0,90897.0,0.00116508]
[1764382017502,1.27459968,90898.0,90897.0,0.00116508]
[1764382018305,1.2501602,90898.0,90897.0,0.00116508]
[1764382023608,1.2501602,90898.0,90897.0,0.02382508]
[1764382024014,1.2501602,90898.0,90897.0,0.04710508]
[1764382024310,1.27460129,90898.0,90897.0,0.00116508]
[1764382026912,1.00460129,90898.0,90897.0,0.04710508]
[1764382027216,0.89460129,90898.0,90897.0,0.04710508]
[1764382027615,0.72136129,90898.0,90897.0,0.04710508]
[1764382027819,0.89460129,90898.0,90897.0,0.04710508]
[1764382028616,0.53380129,90898.0,90897.0,0.04710508]
[1764382028817,0.89460129,90898.0,90897.0,0.04710508]
[1764382029816,0.60360109,90898.0,90897.0,0.04710508]
[1764382033918,0.43036109,90898.0,90897.0,0.04710508]
[1764382036018,0.40592,90898.0,90897.0,0.04710508]
[1764382038023,0.40592,90898.0,90897.0,0.00116508]
[1764382038926,0.40592,90898.0,90897.0,0.04468508]
[1764382044229,0.04512,90898.0,90897.0,0.04468508]
[1764382049522,0.003,90898.0,90897.0,0.51692284]
[1764382049929,0.04673,90898.0,90897.0,0.43468508]
[1764382052432,0.04673,90898.0,90897.0,0.51379522]
[1764382052823,0.04673,90898.0,90897.0,0.52732522]
[1764382053529,0.04673,90898.0,90897.0,0.52732304]
[1764382055735,0.04673,90898.0,90897.0,0.44821508]
[1764382056830,0.02461,90898.0,90897.0,0.44821508]
[1764382057037,0.04673,90898.0,90897.0,0.44821508]
[1764382059732,0.04673,90898.0,90897.0,0.13468508]
[1764382060430,0.04673,90898.0,90897.0,0.04468508]
[1764382060636,0.0577302,90898.0,90897.0,0.02344508]
[1764382060833,0.0577302,90898.0,90897.0,0.04631508]
[1764382061638,0.0577302,90898.0,90897.0,0.02347508]
[1764382062027,0.8977302,90898.0,90897.0,0.00116508]
[1764382063431,0.6577302,90898.0,90897.0,0.00116508]
[1764382065627,0.8777302,90898.0,90897.0,0.00116508]
[1764382067336,0.0547309,90892.0,90891.0,0.01067936]
[1764382067537,0.0547316,90886.0,90885.0,0.0561517]
[1764382067734,0.0547316,90886.0,90885.0,0.4861517]
[1764382068439,0.0547316,90886.0,90885.0,0.43]
[1764382068641,0.0557316,90886.0,90885.0,0.432]
[1764382069143,0.0567316,90886.0,90885.0,0.432]
[1764382069937,0.0567316,90886.0,90885.0,0.45431]
[1764382070339,0.0567316,90886.0,90885.0,0.47715]
[1764382075545,0.0567316,90886.0,90885.0,0.4881518]
[1764382079266,0.4367316,90886.0,90885.0,0.04715]
[1764382079465,0.8867316,90886.0,90885.0,0.002]
[1764382079857,0.0536827,90877.0,90876.0,0.02213508]
[1764382080058,0.4336827,90877.0,90876.0,0.00016508]
[1764382080554,0.8436827,90877.0,90876.0,0.00016508]
[1764382081868,0.8446827,90877.0,90876.0,0.00416508]
[1764382082057,0.8446827,90877.0,90876.0,0.00016508]
[1764382082258,0.8446827,90877.0,90876.0,0.00116508]
[1764382083166,0.8456827,90877.0,90876.0,0.00116508]
[1764382087770,0.8456827,90877.0,90876.0,0.02313508]
[1764382088165,0.0956827,90877.0,90876.0,0.04523508]
[1764382088366,0.3356827,90877.0,90876.0,0.04523508]
[1764382089068,0.0130027,90877.0,90876.0,0.05153508]
[1764382089274,0.0346127,90877.0,90876.0,0.05153508]
[1764382089574,0.0346127,90877.0,90876.0,0.02313508]
[1764382089575,0.0556827,90877.0,90876.0,0.02313508]
[1764382089869,0.0346127,90877.0,90876.0,0.05784508]
[1764382090172,0.0556827,90877.0,90876.0,0.05784508]
[1764382090776,0.0556827,90877.0,90876.0,0.04523508]
[1764382094174,0.0556827,90877.0,90876.0,0.05784508]
[1764382094972,0.0556827,90877.0,90876.0,0.04523508]
[1764382095876,0.002,90877.0,90876.0,0.48784508]
[1764382096587,0.011002,90883.0,90882.0,0.04329]
[1764382096881,0.0339917,90886.0,90885.0,0.0110016]
[1764382097186,0.0553517,90886.0,90885.0,0.0542916]
[1764382097386,0.3608,90887.0,90886.0,0.04329]
[1764382097589,0.3608,90887.0,90886.0,0.40329]
[1764382098579,0.3678,90887.0,90886.0,0.40429]
[1764382098981,0.3648,90887.0,90886.0,0.40429]
[1764382099182,0.3658,90887.0,90886.0,0.40429]
[1764382102589,0.38879,90887.0,90886.0,0.40429]
[1764382102789,0.3658,90887.0,90886.0,0.41483079]
[1764382102993,0.38879,90887.0,90886.0,0.41483079]
[1764382103687,0.005,90887.0,90886.0,0.41483079]
[1764382105386,0.04935,90887.0,90886.0,0.41483079]
[1764382109393,0.0603515,90887.0,90886.0,0.41483079]
[1764382112797,0.04935,90887.0,90886.0,0.41483079]
[1764382114598,0.0603515,90887.0,90886.0,0.41483079]
[1764382114794,0.005,90887.0,90886.0,0.41483079]
[1764382119196,0.0025598,90887.0,90886.0,0.41483079]
[1764382120296,0.0025598,90887.0,90880.0,0.01261]
[1764382120297,0.0541627,90877.0,90876.0,0.00016508]
[1764382120502,0.51843329,90877.0,90876.0,0.00016508]
[1764382122007,0.0541653,90856.0,90855.0,0.05843]
[1764382122197,0.0541653,90856.0,90855.0,0.41843]
[1764382123101,0.0551653,90856.0,90855.0,0.42343]
[1764382123402,0.04416,90856.0,90855.0,0.42343]
[1764382125102,0.04416,90856.0,90855.0,0.43435882]
[1764382133410,0.04416,90856.0,90855.0,0.51335663]
[1764382133610,0.02283,90856.0,90855.0,0.51335663]
[1764382134405,0.001,90856.0,90855.0,0.51335663]
[1764382135008,0.02283,90856.0,90855.0,0.51335663]
[1764382135605,0.04416,90856.0,90855.0,0.51335663]
[1764382135803,0.0551653,90856.0,90855.0,0.44536422]
[1764382140708,0.0120053,90856.0,90855.0,0.44536422]
[1764382141431,0.0120053,90856.0,90855.0,0.52436203]
[1764382141632,0.0554753,90856.0,90855.0,0.44536422]
[1764382141833,0.0687853,90856.0,90855.0,0.01592882]
[1764382142029,0.054476,90850.0,90849.0,0.04268]
[1764382142235,0.054476,90850.0,90849.0,0.47268]
[1764382144228,0.055476,90850.0,90849.0,0.48840735]
[1764382144833,0.001,90850.0,90849.0,0.48840735]
[1764382146625,0.001,90850.0,90849.0,0.56740516]
[1764382147233,0.001,90850.0,90849.0,0.48840735]
[1764382147433,0.001,90850.0,90849.0,0.56740516]
[1764382148441,0.001,90850.0,90849.0,0.48840735]
[1764382155842,0.0234,90850.0,90849.0,0.48840735]
[1764382156040,0.001,90850.0,90849.0,0.48840735]
[1764382172752,0.04639,90850.0,90849.0,0.48840735]
[1764382173552,0.02388,90850.0,90849.0,0.48840735]
[1764382174159,0.001,90850.0,90849.0,0.84920735]
[1764382179550,0.001,90850.0,90849.0,0.48840735]
[1764382179756,0.001,90850.0,90849.0,0.84920735]
[1764382187961,0.02388,90850.0,90849.0,0.84920735]
[1764382188665,0.02388,90850.0,90849.0,0.48840735]
[1764382188874,0.02388,90850.0,90849.0,0.84920735]
[1764382189466,0.001,90850.0,90849.0,0.84920735]
[1764382189865,0.00016508,90865.0,90849.0,0.84920735]
[1764382189866,0.04555508,90865.0,90864.0,0.0562443]
[1764382190060,0.0110031,90875.0,90874.0,0.0110029]
[1764382190256,0.0563931,90875.0,90874.0,0.4362429]
[1764382191256,0.0563931,90875.0,90874.0,0.42524]
[1764382192363,0.0613931,90875.0,90874.0,0.04624]
[1764382192862,0.0623931,90875.0,90874.0,0.04624]
[1764382193171,0.0573931,90875.0,90874.0,0.04524]
[1764382193363,0.0593931,90875.0,90874.0,0.04624]
[1764382193563,0.0583931,90875.0,90874.0,0.04624]
[1764382193763,0.0563931,90875.0,90874.0,0.04524]
[1764382193967,0.0593931,90875.0,90874.0,0.04624]
[1764382196877,0.0593931,90875.0,90874.0,0.05897504]
[1764382198174,0.0593931,90875.0,90874.0,0.06997814]
[1764382201577,0.0593931,90875.0,90874.0,0.46997814]
[1764382205676,0.0593931,90875.0,90874.0,0.45897504]
[1764382206078,0.0593931,90875.0,90874.0,0.46997814]
[1764382212782,0.0368931,90875.0,90874.0,0.46997814]
[1764382213186,0.0582231,90875.0,90874.0,0.46997814]
[1764382233590,0.0582231,90875.0,90874.0,0.45897504]
[1764382234189,0.0582231,90875.0,90874.0,0.46997814]
[1764382241598,0.0582231,90875.0,90874.0,0.45897504]
[1764382244098,0.0582231,90875.0,90874.0,0.46997814]
[1764382248399,0.0582231,90875.0,90874.0,0.47628814]
[1764382255821,0.0827009,90875.0,90874.0,0.47628814]
[1764382265128,0.00016508,90884.0,90883.0,0.054562]
[1764382265332,0.00016508,90884.0,90883.0,0.795362]
[1764382266218,0.00116508,90884.0,90883.0,0.795362]
[1764382267023,0.00516508,90884.0,90883.0,0.796362]
[1764382268428,0.00516508,90884.0,90883.0,0.87546114]
[1764382269325,0.00516508,90884.0,90883.0,0.796362]
[1764382272129,0.04807508,90884.0,90883.0,0.486362]
[1764382272435,0.04807508,90884.0,90883.0,0.776362]
[1764382273932,0.04807508,90884.0,90883.0,0.40536]
[1764382279042,0.05907698,90884.0,90883.0,0.40536]
[1764382285043,0.05907698,90884.0,90883.0,0.04456]
[1764382285245,0.04807508,90884.0,90883.0,0.04456]
[1764382285545,0.05907698,90884.0,90883.0,0.04456]
[1764382286741,0.04807508,90884.0,90883.0,0.04456]
[1764382290040,0.04807508,90884.0,90883.0,0.055562]
[1764382300946,0.06204508,90884.0,90883.0,0.055562]
[1764382301246,0.06204508,90884.0,90883.0,0.13466114]
[1764382303446,0.06204508,90884.0,90883.0,0.055562]
[1764382305450,0.44204508,90884.0,90883.0,0.001]
[1764382305755,0.44204508,90884.0,90874.0,0.03399504]
[1764382305756,0.04479,90875.0,90874.0,0.03399504]
[1764382305943,0.8890202,90875.0,90874.0,0.03399504]
[1764382306253,0.8890202,90875.0,90874.0,0.05619504]
[1764382307155,0.8900202,90875.0,90874.0,0.05719504]
[1764382307858,0.8910202,90875.0,90874.0,0.05719504]
[1764382308247,0.86679,90875.0,90874.0,0.05719504]
[1764382308447,0.86879,90875.0,90874.0,0.05719504]
[1764382308845,0.72879,90875.0,90874.0,0.05719504]
[1764382310960,0.47879,90875.0,90874.0,0.05719504]
[1764382312157,0.04879,90875.0,90874.0,0.05719504]
[1764382315566,0.04879,90875.0,90874.0,0.06819814]
[1764382315861,0.04879,90875.0,90874.0,0.43819814]
[1764382321252,0.02606,90875.0,90874.0,0.43819814]
[1764382321648,0.02606,90875.0,90874.0,0.42719504]
[1764382321649,0.04853,90875.0,90874.0,0.42719504]
[1764382323667,0.04853,90875.0,90874.0,0.001]
[1764382323668,0.88853,90875.0,90874.0,0.001]
[1764382323964,0.0553241,90866.0,90865.0,0.02324508]
[1764382324169,0.4753241,90866.0,90865.0,0.02324508]
[1764382324369,0.4753241,90866.0,90865.0,0.04652508]
[1764382325166,0.1963241,90866.0,90865.0,0.06114464]
[1764382326469,0.1963241,90866.0,90865.0,0.07214884]
[1764382326872,0.1963241,90866.0,90865.0,0.06114464]
[1764382328068,0.4063241,90866.0,90865.0,0.06114464]
[1764382328468,0.0563241,90866.0,90865.0,0.06114464]
[1764382329858,0.0338541,90866.0,90865.0,0.46114464]
[1764382330270,0.0563241,90866.0,90865.0,0.46114464]
[1764382330668,0.001,90866.0,90865.0,0.82194464]
[1764382330874,0.02201508,90884.0,90883.0,0.04636]
[1764382331074,0.02201508,90884.0,90883.0,0.80716]
[1764382331368,0.04448508,90884.0,90883.0,0.80716]
[1764382331958,0.04548508,90884.0,90883.0,0.80716]
[1764382332263,0.00716508,90884.0,90883.0,0.80816]
[1764382333066,0.02901508,90884.0,90883.0,0.80816]
[1764382333565,0.02301508,90884.0,90883.0,0.80716]
[1764382333765,0.04748508,90884.0,90883.0,0.80816]
[1764382334273,0.04648508,90884.0,90883.0,0.80816]
[1764382336879,0.06037508,90884.0,90883.0,0.80816]
[1764382339475,0.06037508,90884.0,90883.0,0.82127393]
[1764382340778,0.04648508,90884.0,90883.0,0.82127393]
[1764382341777,0.00216508,90884.0,90883.0,0.82127393]
[1764382343076,0.02377508,90884.0,90883.0,0.82127393]
[1764382343277,0.04654508,90884.0,90883.0,0.82127393]
[1764382345082,0.04654508,90884.0,90883.0,0.83227593]
[1764382350895,0.02377508,90884.0,90883.0,0.83227593]
[1764382356291,0.04537508,90884.0,90883.0,0.83227593]
[1764382357694,0.04537508,90884.0,90883.0,0.43227593]
[1764382357895,0.04537508,90884.0,90883.0,0.86227593]
[1764382361894,0.00216508,90884.0,90883.0,0.86227593]
[1764382362787,0.02446508,90884.0,90883.0,0.86227593]
[1764382365495,0.04606508,90884.0,90883.0,0.86227593]
[1764382376599,0.04606508,90884.0,90883.0,0.50147593]
[1764382376803,0.04606508,90884.0,90883.0,0.86227593]
[1764382393606,0.04606508,90884.0,90883.0,0.50147593]
[1764382393802,0.04606508,90884.0,90883.0,0.86227593]
[1764382396308,0.04606508,90884.0,90883.0,0.50147593]
[1764382396508,0.04606508,90884.0,90883.0,0.86227593]
[1764382400206,0.00216508,90884.0,90883.0,0.86227593]
[1764382400813,0.02356508,90884.0,90883.0,0.86227593]
[1764382402504,0.02356508,90884.0,90883.0,0.50147593]
[1764382402707,0.02356508,90884.0,90883.0,0.86227593]
[1764382403815,0.0214,90903.0,90902.0,0.0548097]
[1764382404000,0.0425,90903.0,90902.0,0.11424271]
[1764382404205,0.07859873,90903.0,90902.0,0.0548097]
[1764382404502,0.05538,90903.0,90902.0,0.0548097]
[1764382404912,0.05638,90903.0,90902.0,0.0558097]
[1764382405114,0.06338,90903.0,90902.0,0.0558097]
[1764382406304,0.06338,90903.0,90902.0,0.11517063]
[1764382406911,0.05638,90903.0,90902.0,0.11417063]
[1764382407110,0.05938,90903.0,90902.0,0.11517063]
[1764382407309,0.05938,90903.0,90902.0,0.0558097]
[1764382408207,0.05938,90903.0,90902.0,0.11517063]
[1764382408407,0.05938,90903.0,90902.0,0.0558097]
[1764382408607,0.05938,90903.0,90902.0,0.06892403]
[1764382413012,0.05938,90903.0,90902.0,0.12828496]
[1764382413211,0.05938,90903.0,90902.0,0.06892403]
[1764382413713,0.0465,90903.0,90902.0,0.12828496]
[1764382413919,0.0465,90903.0,90902.0,0.06892403]
[1764382423027,0.05955,90903.0,90902.0,0.06892403]
[1764382436030,0.08265066,90903.0,90902.0,0.06892403]
[1764382436230,0.08265066,90903.0,90902.0,0.12832706]
[1764382442238,0.08265066,90903.0,90902.0,0.06892403]
[1764382445932,0.05955,90903.0,90902.0,0.06892403]
[1764382447235,0.05955,90903.0,90902.0,0.14816804]
[1764382448140,0.04294508,90912.0,90911.0,0.0540886]
[1764382448344,0.02170508,90912.0,90911.0,0.4440886]
[1764382448845,0.04294508,90912.0,90911.0,0.4440886]
[1764382449050,0.05661508,90912.0,90911.0,0.4440886]
[1764382449238,0.05761508,90912.0,90911.0,0.4440886]
[1764382449638,0.05761508,90912.0,90911.0,0.4450886]
[1764382449840,0.06161508,90912.0,90911.0,0.4450886]
[1764382450843,0.05861508,90912.0,90911.0,0.4450886]
[1764382464136,0.04494508,90912.0,90911.0,0.4450886]
[1764382467245,0.05798508,90912.0,90911.0,0.4450886]
[1764382467546,0.05798508,90912.0,90911.0,0.3750886]
[1764382468446,0.05798508,90912.0,90911.0,0.0550886]
[1764382468646,0.05798508,90912.0,90911.0,0.1350886]
[1764382471251,0.05798508,90912.0,90911.0,0.4650886]
[1764382474042,0.05798508,90912.0,90911.0,0.0750886]
[1764382474258,0.05798508,90912.0,90911.0,0.4850886]
[1764382476353,0.05798508,90912.0,90911.0,0.56428193]
[1764382476654,0.05798508,90912.0,90911.0,0.25428193]
[1764382477249,0.05798508,90912.0,90911.0,0.1750886]
[1764382480656,0.05798508,90912.0,90911.0,0.4850886]
[1764382484759,0.05798508,90912.0,90911.0,0.2350886]
[1764382488253,0.05798508,90912.0,90911.0,0.04409]
[1764382488459,0.08109796,90912.0,90911.0,0.001]
[1764382488860,0.08109796,90912.0,90911.0,0.02203]
[1764382490546,0.08109796,90912.0,90911.0,0.04379]
[1764382490752,0.08109796,90912.0,90911.0,0.001]
[1764382491451,0.08109796,90912.0,90911.0,0.02203]
[1764382495963,0.05798508,90912.0,90911.0,0.02203]
[1764382499068,0.05798508,90912.0,90911.0,0.001]
[1764382499260,0.05798508,90912.0,90911.0,0.04658]
[1764382501970,0.00216508,90912.0,90911.0,0.45658]
[1764382502176,0.01372,90932.0,90925.0,0.04558]
[1764382502367,0.04399495,90926.0,90925.0,0.4173769]
[1764382502562,0.01372,90938.0,90925.0,0.4173769]
[1764382502563,0.41824,90942.0,90941.0,0.04558]
[1764382502768,0.48744,90942.0,90941.0,0.04558]
[1764382502964,0.48744,90942.0,90941.0,0.10494851]
[1764382503366,0.48744,90942.0,90941.0,0.04558]
[1764382504174,0.49244,90942.0,90941.0,0.04658]
[1764382504475,0.49244,90942.0,90941.0,0.001]
[1764382508378,0.88244,90942.0,90941.0,0.001]
[1764382510773,0.88244,90942.0,90932.0,0.05947603]
[1764382510774,0.05744,90933.0,90932.0,0.00016499]
[1764382510969,0.41744,90933.0,90932.0,0.00016499]
[1764382511876,0.428436,90933.0,90932.0,0.00016499]
[1764382512076,0.438436,90933.0,90932.0,0.00016499]
[1764382512272,0.789236,90933.0,90932.0,0.00016499]
[1764382512572,1.210236,90933.0,90932.0,0.00016499]
[1764382512877,1.211236,90933.0,90932.0,0.00016499]
[1764382513879,1.211236,90933.0,90932.0,0.0122589]
[1764382514885,1.384356,90933.0,90932.0,0.0122589]
[1764382516175,1.384356,90933.0,90921.0,0.05931104]
[1764382516176,0.0683073,90924.0,90923.0,0.0109971]
[1764382517484,0.0693073,90924.0,90923.0,0.0129971]
[1764382519186,0.0693073,90924.0,90923.0,0.0570371]
[1764382522281,0.0693073,90924.0,90923.0,0.11634814]
[1764382523385,0.05831,90924.0,90923.0,0.11634814]
[1764382523591,0.05831,90924.0,90923.0,0.0570371]
[1764382525894,0.069307,90924.0,90923.0,0.0570371]
[1764382532312,0.069307,90924.0,90923.0,0.04604]
[1764382533411,0.069307,90924.0,90923.0,0.10529624]
[1764382536205,0.069307,90924.0,90923.0,0.04604]
[1764382539419,0.069307,90924.0,90923.0,0.12524291]
[1764382540316,0.069307,90924.0,90923.0,0.04604]
[1764382541910,0.05831,90924.0,90923.0,0.04604]
[1764382543312,0.02358,90924.0,90923.0,0.37604]
[1764382544315,0.04691,90924.0,90923.0,0.37604]
[1764382544618,0.001,90924.0,90923.0,0.37604]
[1764382545213,0.02204,90924.0,90923.0,0.37604]
[1764382546213,0.001,90924.0,90923.0,0.37604]
[1764382549528,0.001,90924.0,90923.0,0.4749672]
[1764382550429,0.001,90924.0,90923.0,0.37604]
[1764382555727,0.001,90924.0,90923.0,0.73684]
[1764382557629,0.00016499,90933.0,90932.0,0.04436]
[1764382557825,0.00016499,90933.0,90932.0,0.40516]
[1764382558623,0.00116499,90933.0,90932.0,0.40516]
[1764382558828,0.00116499,90933.0,90932.0,0.4161561]
[1764382559936,0.00216499,90933.0,90932.0,0.4161561]
[1764382562625,0.00216499,90933.0,90932.0,0.7961561]
[1764382564433,0.02405499,90933.0,90932.0,0.7961561]
[1764382565036,0.00216499,90933.0,90932.0,0.7961561]
[1764382565234,0.00216499,90933.0,90932.0,0.81021016]
[1764382566433,0.04575499,90933.0,90932.0,0.81021016]
[1764382566640,0.05857499,90933.0,90932.0,0.81021016]
[1764382567328,0.04575499,90933.0,90932.0,0.81021016]
[1764382567932,0.05857499,90933.0,90932.0,0.81021016]
[1764382570127,0.05857499,90933.0,90932.0,0.45386967]
[1764382570328,0.05857499,90933.0,90932.0,0.37485406]
[1764382571733,0.05857499,90933.0,90932.0,0.41992406]
[1764382572245,0.06957099,90933.0,90932.0,0.43092016]
[1764382574536,0.05857499,90933.0,90932.0,0.43092016]
[1764382580140,0.04575499,90933.0,90932.0,0.43092016]
[1764382584347,0.04575499,90933.0,90932.0,0.07012016]
[1764382587438,0.05865499,90933.0,90932.0,0.07012016]
[1764382599456,0.05865499,90933.0,90932.0,0.14913577]
[1764382601438,0.85865499,90933.0,90932.0,0.01405406]
[1764382601643,0.0444,90929.0,90928.0,0.07901561]
[1764382601838,0.0682967,90927.0,90926.0,0.07901561]
[1764382602044,0.4282967,90927.0,90926.0,0.09001241]
[1764382602247,0.4282967,90927.0,90926.0,0.13352241]
[1764382602449,0.4282967,90927.0,90926.0,0.0545068]
[1764382604050,0.4282967,90927.0,90926.0,0.0555068]
[1764382608542,0.1373,90927.0,90926.0,0.0555068]
[1764382608747,0.0573,90927.0,90926.0,0.0555068]
[1764382608948,0.02227,90927.0,90926.0,0.0555068]
[1764382609657,0.0444,90927.0,90926.0,0.0555068]
[1764382612559,0.0573,90927.0,90926.0,0.0555068]
[1764382615257,0.03343099,90933.0,90932.0,0.0545061]
[1764382616058,0.05556099,90933.0,90932.0,0.0545061]
[1764382616463,0.05656099,90933.0,90932.0,0.0545061]
[1764382616863,0.05756099,90933.0,90932.0,0.0545061]
[1764382619057,0.07108099,90933.0,90932.0,0.04351]
[1764382620560,0.07108099,90933.0,90925.0,0.3608]
[1764382620561,0.0564164,90929.0,90928.0,0.07901561]
[1764382620964,0.4864164,90929.0,90928.0,0.07901561]
[1764382621266,0.0564167,90927.0,90926.0,0.09001231]
[1764382621566,0.0564167,90927.0,90926.0,0.11243231]
[1764382622266,0.04542,90927.0,90926.0,0.13397231]
[1764382623264,0.04542,90927.0,90926.0,0.12297561]
[1764382623666,0.04542,90927.0,90926.0,0.12397561]
[1764382625964,0.04542,90927.0,90926.0,0.04496]
[1764382627865,0.05894,90927.0,90926.0,0.04496]
[1764382640876,0.01116099,90933.0,90932.0,0.0551961]
[1764382641267,0.05733099,90933.0,90932.0,0.0551961]
[1764382642072,0.05833099,90933.0,90932.0,0.0551961]
[1764382642378,0.05933099,90933.0,90932.0,0.13437317]
[1764382643377,0.05833099,90933.0,90932.0,0.13437317]
[1764382644378,0.04633499,90933.0,90932.0,0.13537317]
[1764382648283,0.04633499,90933.0,90932.0,0.51537317]
[1764382649382,0.04633499,90933.0,90932.0,0.4361961]
[1764382649991,0.05733099,90933.0,90932.0,0.4361961]
[1764382652481,0.04633499,90933.0,90932.0,0.4361961]
[1764382652988,0.05758,90948.0,90947.0,0.0545143]
[1764382653192,0.04481,90948.0,90947.0,0.4645143]
[1764382653985,0.04581,90948.0,90947.0,0.4645143]
[1764382654492,0.04981,90948.0,90947.0,0.4655143]
[1764382656292,0.04781,90948.0,90947.0,0.4645143]
[1764382657400,0.04781,90948.0,90947.0,0.8253143]
[1764382658790,0.06084,90948.0,90947.0,0.8253143]
[1764382659595,0.06084,90948.0,90947.0,0.84040644]
[1764382661593,0.0718341,90948.0,90947.0,0.84040644]
[1764382661996,0.06084,90948.0,90947.0,0.84040644]
[1764382664803,0.0718341,90948.0,90947.0,0.41941214]
[1764382666504,0.06084,90948.0,90947.0,0.41941214]
[1764382672500,0.83084,90948.0,90947.0,0.01509214]
[1764382672705,0.0109952,90941.0,90940.0,0.0545151]
[1764382672901,0.0558052,90941.0,90940.0,0.0545151]
[1764382673900,0.0558052,90941.0,90940.0,0.0555151]
[1764382675206,0.04481,90941.0,90940.0,0.0555151]
[1764382676213,0.02278,90941.0,90940.0,0.0555151]
[1764382676901,0.04442,90941.0,90940.0,0.0555151]
[1764382682508,0.0551644,90946.0,90945.0,0.04247]
[1764382683513,0.0571644,90946.0,90945.0,0.04247]
[1764382697915,0.0710344,90946.0,90945.0,0.04247]
[1764382711739,0.0681046,90944.0,90943.0,0.12305275]
[1764382712941,0.05711,90944.0,90943.0,0.12305275]
[1764382713338,0.05711,90944.0,90943.0,0.12405275]
[1764382713533,0.05811,90944.0,90943.0,0.12405275]
[1764382713731,0.001,90944.0,90943.0,0.55405275]
[1764382713931,0.02253,90944.0,90943.0,0.47492]
[1764382714333,0.04454,90944.0,90943.0,0.47492]
[1764382717339,0.02253,90944.0,90943.0,0.47492]
[1764382717540,0.001,90944.0,90943.0,0.47492]
[1764382718548,0.02253,90944.0,90943.0,0.47492]
[1764382718844,0.001,90944.0,90943.0,0.47492]
[1764382719838,0.02253,90944.0,90943.0,0.83572]
[1764382720245,0.02253,90944.0,90943.0,0.47492]
[1764382720446,0.02253,90944.0,90943.0,0.83572]